Cogmind - Beta 15 @@@ ROGUE MODE // 2025.10.17 @ 20:38:13 Player: GermanMO Result: Destroyed by PE-VO6(R) with Subdweller Laser Performance ------------- Evolutions (0) 0 Regions Visited (2) 400 Robots Destroyed (8) 40 Value Destroyed (43) 43 Prototype IDs (0) 0 Alien Tech Used (0) 0 Bonus (0) 0 TOTAL SCORE: 483 Bonus ------- None Cogmind --------- Core Integrity 0/250 Matter 225/300 Energy 100/100 System Corruption 0% Temperature Cool (6) Movement Core (100) Ox1 Location -10/Subcaves Parts ------- > --- POWER (1) -------- (None) > --- PROPULSION (2) --- (None) > --- UTILITY (2) ------ Small Storage Unit Seismic Detector > --- WEAPON (2) ------- (None) > --- INVENTORY (8) ---- Improved Ion Engine Improved Terrain Scanner Light Assault Rifle Peak State ------------ > --- POWER ------------ Improved Ion Engine > --- PROPULSION ------- Compact Wheel Compact Wheel > --- UTILITY ---------- Small Storage Unit Seismic Detector > --- WEAPON ----------- Light Assault Rifle Mining Laser > --- INVENTORY -------- Improved Terrain Scanner Grenade Launcher [Rating: 8] Favorites ----------- Power Improved Ion Engine Engine Improved Ion Engine Propulsion Compact Wheel Wheel Compact Wheel Utility Seismic Detector Device Seismic Detector Storage Small Storage Unit Weapon Mining Laser Ballistic Gun Light Assault Rifle Launcher Grenade Launcher Special Weapon Mining Laser Build | -11 -10 -10 ------- Run | Yrd Mat Sub Slots Evolved . | . . . Power . | . . . Propulsion . | . . . Utility . | . . . Weapon . | . . . Parts Attached 10 | 6 3 1 Power 2 | . 2 . Engine 2 | . 2 . Core . | . . . Reactor . | . . . Propulsion 2 | 2 . . Treads . | . . . Leg . | . . . Wheel 2 | 2 . . Hover . | . . . Flight . | . . . Utility 3 | 2 1 . Device 2 | 2 . . Storage 1 | . 1 . Processor . | . . . Hackware . | . . . Protection . | . . . Artifact . | . . . Weapon 3 | 2 . 1 Energy Gun . | . . . Energy Cannon . | . . . Ballistic Gun 1 | 1 . . Ballistic Cannon . | . . . Launcher 1 | . . 1 Special Weapon 1 | 1 . . Impact Weapon . | . . . Slashing Weapon . | . . . Piercing Weapon . | . . . Special Melee Weapon . | . . . Unidentified Prototypes . | . . . Parts Lost 5 | . . 5 Power 1 | . . 1 Propulsion 2 | . . 2 Utility . | . . . Weapon 2 | . . 2 Highest Loss Streak 3 | . . 3 To Critical Strikes . | . . . Average Backups 3 | 3 3 3 Power . | . . 1 Propulsion . | 1 1 . Utility 1 | . 1 1 Weapon . | . . 1 Tool/Special . | . . . Unused Backups 1 | . . 1 Power 1 | . . 1 Propulsion . | . . . Utility . | . . . Weapon . | . . . Tool/Special . | . . . Average Slot Usage (%) 70 | . 68 73 Engine 9 | . 6 14 Wheel 14 | . 12 18 Device 14 | . 14 14 Storage 8 | . 6 14 Ballistic Gun 10 | . 14 3 Special Weapon 11 | . 14 7 Peak Build Rating 8 | 6 8 8 Average Rating 4 | 2 5 5 On Entrance 3 | . 3 8 Naked Turns . | . . . Heaviest Build 17 | 3 15 17 Greatest Support 32 | 32 32 32 Greatest Overweight (x) 4 | . . 4 Average Overweight (x) . | . . . Largest Inventory Capacity 8 | 5 8 8 Average Capacity 6 | 5 6 8 Most Carried 5 | 5 5 4 Average Carried 3 | 3 3 3 Final Capacity 8 | 5 8 8 Final Carried 5 | 5 3 3 Class Distribution -------------------- 100% | Mutant Dominant Class ---------------- Mutant | -10/Materials Mutant | -10/Subcaves Resources | -11 -10 -10 ----------- Run | Yrd Mat Sub Matter Collected 302 | 302 . . Remotely . | . . . Salvage Created 240 | 240 . . Parts 27 | 27 . . Haulers Intercepted . | . . . Recyclers Shooed 1 | 1 . . Parts Field Recycled . | . . . Retrieved Matter . | . . . Parts Self-Destructed . | . . . Prevented . | . . . Kills | -11 -10 -10 ------- Run | Yrd Mat Sub Combat Hostiles Destroyed . | . . . Classes Destroyed 3 | 3 . . Worker 2 | 2 . . Tunneler 5 | 5 . . Recycler 1 | 1 . . Best Kill Streak 3 | 3 . . Combat Bots Only . | . . . Max Kills in Single Turn 1 | 1 . . Gunslinging . | . . . Exploded . | . . . Melee . | . . . Uniques/NPCs Destroyed . | . . . Combat | -11 -10 -10 -------- Run | Yrd Mat Sub Hostile Shots Fired 25 | . . 25 Missed 7 | . . 7 Hits 18 | . . 18 Projectile 18 | . . 18 Damage Taken 510 | . . 510 Core 250 | . . 250 Absorbed by Shields . | . . . Core Remaining (%) 100 | 100 . . Volleys Fired 47 | 32 10 5 Largest 2 | 2 1 1 Hottest 120 | 120 100 100 Shots Fired 49 | 34 10 5 Gun 32 | 32 . . Cannon . | . . . Launcher 4 | . . 4 Special 13 | 2 10 1 Kinetic 32 | 32 . . Thermal 13 | 2 10 1 Explosive 4 | . . 4 Electromagnetic . | . . . Robot Hit Streak 7 | 5 . 7 Robot Miss Streak 2 | 2 . . Penetration Max . | . . . Secondary Targets . | . . . Shots Hit Robots 25 | 23 . 2 Core Hits 13 | 12 . 1 Critical Kills . | . . . Critical Parts Destroyed . | . . . Critical Strikes . | . . . Melee Attacks . | . . . Impact . | . . . Slashing . | . . . Piercing . | . . . Sneak Attacks . | . . . Combat Hostiles . | . . . Follow-up Attacks . | . . . Damage Inflicted 479 | 192 . 287 Guns 192 | 192 . . Cannons . | . . . Explosions 287 | . . 287 Melee . | . . . Ramming . | . . . Kinetic 192 | 192 . . Thermal . | . . . Explosive 287 | . . 287 Electromagnetic . | . . . Impact . | . . . Slashing . | . . . Piercing . | . . . Highest Corruption . | . . . Average Corruption . | . . . Corruption Purged . | . . . Corruption Blocked . | . . . Overload Shots . | . . . Overflow Damage . | . . . Projectiles . | . . . Explosions . | . . . Melee . | . . . Knockbacks . | . . . Impact . | . . . Kinetic . | . . . Secondary . | . . . Self-Inflicted Damage 40 | . . 40 Shots 1 | . . 1 Rammed . | . . . Targets Rammed . | . . . Kicked . | . . . Crushed . | . . . Highest Temperature 20 | 20 . . Average Temperature 12 | 12 . . Received Heat Transfer 90 | . . 90 Siege Activations . | . . . Martial Activations . | . . . Shielding Activations . | . . . Robots Disrupted . | . . . Combat Hostiles . | . . . Robots Corrupted . | . . . Combat Hostiles . | . . . Parts Fried . | . . . Impact Corruptions . | . . . Robots Melted . | . . . Combat Hostiles . | . . . Parts Melted . | . . . Heat Transferred . | . . . Parts Sabotaged . | . . . Parts Stolen . | . . . Parts Stripped . | . . . Power Chain Reactions . | . . . Alert | -11 -10 -10 ------- Run | Yrd Mat Sub Maximum Alert Level . | . . . Low Security (%) 100 | 100 100 . Level 1 . | . . . Level 2 . | . . . Level 3 . | . . . Level 4 . | . . . Level 5 . | . . . High Security . | . . . Max Security . | . . . Peak Influence 10 | 10 7 . Initial 3 | . 3 . Average 1 | 2 . . Influence Increases 48 | 40 8 . Destroy 0b10 Robot/NC 40 | 40 . . Successful Hack 7 | . 7 . Destroy Structure 1 | . 1 . Influence Decreases 48 | 35 6 7 Entered New Map 6 | . 2 4 Time Decay 42 | 35 4 3 Squads Dispatched 1 | . 1 . Investigation 1 | . 1 . Extermination . | . . . Reinforcement . | . . . Assault . | . . . Garrison . | . . . Intercept . | . . . Searches Triggered . | . . . Construction Impeded . | . . . Haulers Reinforced . | . . . Active Scanning Responses . | . . . Cargo Convoy Interrupts . | . . . Stealth | -11 -10 -10 --------- Run | Yrd Mat Sub Distress Signals . | . . . Communications Jammed . | . . . Distress Signals . | . . . Times Spotted 4 | . . 4 Peak Tracking Total 4 | . 1 4 Tactical Retreats . | . . . Traps | -11 -10 -10 ------- Run | Yrd Mat Sub Traps Triggered 2 | . . 2 Indirectly . | . . . Trap Hack Attempts . | . . . Triggered . | . . . Disarmed . | . . . Reprogrammed . | . . . Reused . | . . . Traps Extracted . | . . . Installed . | . . . Triggered . | . . . Machines | -11 -10 -10 ---------- Run | Yrd Mat Sub Machines Disabled . | . . . Max in Single Turn . | . . . Machines Repaired . | . . . Machines Dismantled . | . . . Machines Sabotaged . | . . . Overloaded Fab Kills . | . . . Hacking | -11 -10 -10 --------- Run | Yrd Mat Sub Machines Accessed 1 | . 1 . Terminals 1 | . 1 . Fabricators . | . . . Repair Stations . | . . . Recycling Units . | . . . Scanalyzers . | . . . Garrison Access . | . . . Total Hacks 4 | . 4 . Successful 2 | . 2 . Failed 2 | . 2 . Catastrophic 1 | . 1 . Database Lockouts . | . . . Manual 5 | . 5 . Terminals 4 | . 4 . Fabricators . | . . . Repair Stations . | . . . Recycling Units . | . . . Scanalyzers . | . . . Garrison Access . | . . . Terminal Hacks . | . . . Fabricator Hacks . | . . . Repair Station Hacks . | . . . Recycling Unit Hacks . | . . . Scanalyzer . | . . . Garrison Access Hacks . | . . . Unauthorized Hacks 2 | . 2 . Terminals 2 | . 2 . Assimilate 1 | . 1 . Disrupt 1 | . 1 . Fabricators . | . . . Repair Stations . | . . . Recycling Units . | . . . Scanalyzers . | . . . Garrison Access . | . . . Data Cores Recovered . | . . . Used . | . . . Hacking Detections 1 | . 1 . Full Trace Events 1 | . 1 . Feedback Events . | . . . Feedback Blocked . | . . . Robot Schematics Acquired . | . . . Robots Built . | . . . Authchips . | . . . Time . | . . . Total Robot Build Rating . | . . . Part Schematics Acquired . | . . . Parts Built . | . . . Authchips . | . . . Time . | . . . Total Part Build Rating . | . . . Parts Repaired . | . . . Time . | . . . Parts Recycled . | . . . Recycled Matter . | . . . Retrieved Matter . | . . . Retrieved Components . | . . . Parts Scanalyzed . | . . . Part Schematics Acquired . | . . . Parts Damaged . | . . . Bothacking | -11 -10 -10 ------------ Run | Yrd Mat Sub Used RIF Installer . | . . . Robots Hacked . | . . . Non-combat . | . . . Combat . | . . . Robot Hacks Applied . | . . . Relay Couplers Released . | . . . Fabnet Peak Effective % . | . . . Robots Rewired . | . . . Allies Hacked . | . . . Hacks Repelled . | . . . Allies | -11 -10 -10 -------- Run | Yrd Mat Sub Total Allies . | . . . Largest Group . | . . . Highest-Rated Group . | . . . Highest-Rated Ally . | . . . Total Orders . | . . . Ally Attacks . | . . . Total Damage . | . . . Kills . | . . . Allies Corrupted . | . . . Allies Melted . | . . . Intel | -11 -10 -10 ------- Run | Yrd Mat Sub Active Infowar (turns) 427 | 76 239 112 Terrain 2 | 2 . . Seismic 427 | 76 239 112 Robot Analysis Total . | . . . Derelict Logs Recovered . | . . . Drone Launches . | . . . Drone Recoveries . | . . . Exploration | -11 -10 -10 ------------- Run | Yrd Mat Sub Turns Passed 483 | 132 239 112 Spaces Moved 357 | 95 168 94 Core 158 | 94 62 2 Treads . | . . . Legs . | . . . Wheels 199 | 1 106 92 Hover . | . . . Flight . | . . . Fastest Speed 50 | 50 50 100 Average Speed 78 | 50 81 101 Slowest Speed 250 | 100 100 250 Overloaded Moves . | . . . Propulsion Burnouts . | . . . Robots Hopped . | . . . Potential Cave-ins . | . . . Cave-ins Triggered . | . . . Exploration Rate (%) 14 | 4 19 19 Regions Visited 2 Branch Regions 1 Pre-discovered Areas . | . . . Known Exits Taken . | . . . Unknown Exits Taken 2 | 1 1 . Scrap Searched . | . . . Spaces Dug 1 | . 1 . Terrain Destroyed 16 | 1 1 14 Melee . | . . . Projectile 2 | 1 1 . AOE 14 | . . 14 Terrain Rammed . | . . . Walls Destroyed . | . . . Machines Disabled . | . . . Actions | -11 -10 -10 --------- Run | Yrd Mat Sub Total 490 | 149 240 101 Wait 54 | . 54 . Move 355 | 94 167 94 Hop . | . . . Pick Up 14 | 11 3 . Fast Attach . | . . . Attach 13 | 7 5 1 Detach 3 | 2 . 1 Swap . | . . . Drop 4 | 3 1 . Fire 47 | 32 10 5 Melee . | . . . Ram . | . . . Kick . | . . . Crush . | . . . Escape Stasis . | . . . Rewire . | . . . Trap . | . . . Miscellaneous . | . . . Route ------- -11/Scrapyard -10/Materials -10/Subcaves History --------- Turn | Location | Event 16 | -11/Scrapyard | Discovered new exit (range 16) 133 | -11/Scrapyard | Entered Materials 248 | -10/Materials | Discovered new exit (range 3) 302 | -10/Materials | Build established: Mutant 372 | -10/Materials | Entered Subcaves 384 | -10/Subcaves | Ambushed by Subdwellers from Twisted Machinery 406 | -10/Subcaves | Core integrity fell below 50% 454 | -10/Subcaves | Lost 3 parts (1n2w) 483 | -10/Subcaves | Core integrity fell below 20% 484 | -10/Subcaves | Destroyed by PE-VO6(R) with Subdweller Laser Last Messages --------------- 00370_ U-05 Engineer builds a Wall. 00371_ T-07 Excavator is excavating. LOCATION=UNKNOWN AMBIENT_HEAT=-10 GOAL=ESCAPE 00384_ 3J-TYK(R) emerges from the Twisted Machinery. 00401_ Grenade Launcher destroyed. 00403_ Com. Wheel destroyed. 00423_ Triggered Piercing Trap. 00423_ Spikes shoot up from the floor. 00423_ Critical hit (Impale). 00423_ Mining Laser destroyed. 00426_ Triggered Piercing Trap. 00426_ Spikes shoot up from the floor. 00426_ Critical hit (Impale). 00448_ 5U-K3B(u) builds Twisted Machinery. 00479_ 4C-5FL(O) collects matter. 00480_ Com. Wheel destroyed. 00482_ Imp. Ion Engine destroyed. Map ----- +----------------------------------------------------+ | ???????????????????????????????????????????? | | ???????????????????????????????????????????? | | ???????????????????????????????????????????? | | ???????????????????????????????????????????? | | ???????????????????????????????????????????? | | ???????????????????????????????????????????? | | ???????????????????????????????????????????? | | ???????????????????????????????????????????? | | ???????????????????????????????????????????? | | ???????????????????????????????????????????? | | ???????????????????????????????????????????? | | ???????????????????????????????????????????? | | ???????????????????????? ?????????????????? | | ??????????????????????## ??????????????????? | | ?????????????????????? ??#???????????????? | | ?????????????????????? ?? #???????????????? | | ????????????????????? ? #???????????????? | | ????????????????????? ## ????????????????? | | ????????????????????? ?????????????????? | | ????????????????????# ??????????????????? | | ???????????????????? ???????????????????? | | ???????????????????? ????????????????????? | | ???????????????????? #????????????????????? | | ??????????????????## R###??????????????????? | | ??????????????????# ##?????????????????? | | ?????????????????##@ R #?????????????????? | | ????????????????## ##?????????????????? | | ???????????????## ###??????????????????? | | ???????????????# ###????????????????????? | | ???????????????# % #??###?????????????????? | | ???????????????## ###% #?????????????????? | | ????????????????# #?????????????????? | | ????????????????# #?????????????????? | | ???????????????## ###?????????????????? | | ???????????????# % ##???????????????????? | | ???????????????# ##???????????????????? | | ???????????????# ###?????????????????? | | ???????????????# #?????????????????# | | ???????????????# #????????????????## | | ???????????????# ##???????????##### | | ???????????????## ###????????## " | | ????????????????# ####????##"""" " | | ????????????????# ## #????#""" # | | ????????????????# #### ##?#### "" ### | | ????????????????# ???# ####" "" ### | | ????????????????## ???## ##" "" ! | | ?????????????????## ???## "" # "" | | ??????????????????# ???# ## | | ??????????????????# ???## ## ## | | ??????????????????###????#### ####""## | +----------------------------------------------------+ Best States ------------- Heat Dissipation 25 Energy Generation 12 Energy Capacity 265 Matter Stores 300 Matter Capacity 300 Sight Range 16 Terrain Scan Range 16 Terrain Scan Density 10 Evasion (%) 50 Item Schematics ----------------- None Robot Schematics ------------------ None Fabricated ------------ Nothing Repaired ---------- Nothing Alien Tech Used ----------------- None Achievements -------------- None Challenges ------------ None Game ------ Seed RingImpulseReconfigurator Manual? 0 Play Time 00:10:39 Cumulative 28.9 hours Start 2025.10.17 @ 20:29:12 End 2025.10.17 @ 20:38:13 Sessions 1 Manual Loads 0 Difficulty Rogue Special Mode None Game No. 46 Rogue 19 Adventurer 0 Explorer 27 Win Type - Total 0 Types 0/0/0/0/0/0/0/0/0/0 Lore% 20 Gallery% 36 Achievement% 29 Wizard Run 0 Options --------- Layout 1 ASCII 0 Keyboard 0 Movement Mouse Keybinds 0 Fullscreen 2 Font 16/SmallcapsGlow Map View 50x35 Zoom Use 0% Tactical HUD 1 Map Filters NONE Filters NONE Steam X RUN: 7d3f6ebb-edbe-49f6-b28c-69faba05a819